bitfinex-derivatives/quotes_BTCF0:USTF0_20250710
["timestamp","ask_amount","ask_price","bid_price","bid_amount"]
[1752169626470,1.08229178,113540.0,113530.0,0.3931]
[1752169626672,0.73472338,113540.0,113530.0,0.9850369]
[1752169626970,0.70412338,113540.0,113530.0,0.9850369]
[1752169627174,0.70412338,113540.0,113530.0,0.6354684]
[1752169627368,0.70412338,113540.0,113530.0,1.6586569]
[1752169627565,0.34332338,113540.0,113530.0,2.0194569]
[1752169627766,0.34240338,113540.0,113530.0,1.6075884]
[1752169627966,0.22938328,113540.0,113530.0,2.0194569]
[1752169628166,0.22938328,113540.0,113530.0,2.1194569]
[1752169628369,0.05333038,113540.0,113530.0,2.1194569]
[1752169628574,0.1008367,113540.0,113530.0,2.2956169]
[1752169628773,0.02354038,113540.0,113530.0,2.2956169]
[1752169629466,0.02454038,113540.0,113530.0,2.2976169]
[1752169629675,0.08788874,113540.0,113530.0,2.2976169]
[1752169629876,0.02454038,113540.0,113530.0,2.2976169]
[1752169630063,0.02454038,113540.0,113530.0,2.1214569]
[1752169630264,0.0720433,113540.0,113530.0,2.2976169]
[1752169630473,0.02454038,113540.0,113530.0,2.2976169]
[1752169631275,0.07203694,113540.0,113530.0,2.2976169]
[1752169631577,0.02454038,113540.0,113530.0,2.2976169]
[1752169631770,0.02454038,113540.0,113530.0,2.1214569]
[1752169632170,0.072037,113540.0,113530.0,2.1214569]
[1752169632877,0.02454038,113540.0,113530.0,2.1214569]
[1752169633064,0.08788874,113540.0,113530.0,2.1214569]
[1752169633776,0.02454038,113540.0,113530.0,2.1214569]
[1752169634772,0.07202867,113540.0,113530.0,2.1214569]
[1752169634971,0.07202867,113540.0,113530.0,1.8283569]
[1752169635770,0.24808157,113540.0,113530.0,1.8283569]
[1752169635973,0.27787157,113540.0,113530.0,1.7283569]
[1752169636173,0.12123867,113540.0,113530.0,0.4668]
[1752169636474,0.31110328,113540.0,113530.0,0.6428684]
[1752169636676,0.28010328,113540.0,113530.0,1.0547369]
[1752169636874,0.15154022,113540.0,113530.0,1.2151369]
[1752169637079,0.29729312,113540.0,113530.0,1.2151369]
[1752169637273,0.24980328,113540.0,113530.0,1.2151369]
[1752169637980,0.24980328,113540.0,113530.0,0.8032684]
[1752169638278,0.24980328,113540.0,113530.0,1.8268569]
[1752169639876,0.29729201,113540.0,113530.0,1.8268569]
[1752169640082,0.29729201,113540.0,113530.0,1.7268569]
[1752169640382,0.24980328,113540.0,113530.0,1.7268569]
[1752169640679,0.28180328,113540.0,113530.0,1.7268569]
[1752169641180,0.28180328,113540.0,113530.0,1.1151369]
[1752169641480,0.28180328,113540.0,113530.0,1.3654969]
[1752169641871,0.28180328,113540.0,113530.0,1.7262969]
[1752169644182,0.28180328,113540.0,113530.0,1.1151369]
[1752169644386,0.28180328,113540.0,113530.0,0.7239369]
[1752169644682,0.28180328,113540.0,113530.0,1.3348569]
[1752169645383,0.28180328,113540.0,113530.0,0.3120684]
[1752169645583,0.28180328,113540.0,113530.0,0.7239369]
[1752169645882,0.31300328,113540.0,113530.0,1.3349369]
[1752169646270,0.31300328,113540.0,113530.0,1.3049369]
[1752169647077,0.31300328,113540.0,113530.0,0.6939369]
[1752169647284,0.31388328,113540.0,113530.0,1.3051369]
[1752169647484,0.31300328,113540.0,113530.0,1.3051369]
[1752169647777,0.26238328,113540.0,113530.0,1.6659369]
[1752169647984,0.23038328,113540.0,113530.0,1.6658969]
[1752169648185,0.23038328,113540.0,113530.0,1.7286969]
[1752169649282,0.05433038,113540.0,113530.0,1.8286969]
[1752169649584,0.02454038,113540.0,113530.0,1.8286969]
[1752169649882,0.02458038,113540.0,113530.0,1.8286969]
[1752169650878,0.02983,113550.0,113540.0,0.1760529]
[1752169651085,0.02983,113550.0,113540.0,1.22857894]
[1752169652276,0.03083,113550.0,113540.0,1.22857894]
[1752169652877,0.03083,113550.0,113540.0,1.22957894]
[1752169653478,0.03087,113550.0,113540.0,1.22957894]
[1752169653673,0.03087,113550.0,113540.0,1.22967488]
[1752169654476,0.06297,113550.0,113540.0,1.22967488]
[1752169659979,0.03318,113550.0,113540.0,1.22967488]
[1752169660186,0.28606983,113580.0,113570.0,0.2095764]
[1752169660482,0.28606983,113580.0,113570.0,2.2068049]
[1752169660483,0.2724611,113580.0,113570.0,2.2068049]
[1752169660682,0.2275831,113580.0,113570.0,2.2068049]
[1752169660891,0.033,113580.0,113570.0,2.2068049]
[1752169661091,0.71626343,113590.0,113580.0,0.1759909]
[1752169661388,0.3164475,113590.0,113580.0,0.6124294]
[1752169661692,0.05247,113590.0,113580.0,0.6124294]
[1752169661889,0.05159,113590.0,113580.0,0.68209298]
[1752169662096,0.2562754,113590.0,113580.0,0.68209298]
[1752169662285,0.0803,113590.0,113580.0,0.9732294]
[1752169662491,0.06171,113590.0,113580.0,0.9732294]
[1752169662688,0.04934,113600.0,113590.0,0.1950154]
[1752169662891,0.08339308,113600.0,113590.0,2.2068939]
[1752169663084,0.08339308,113600.0,113590.0,2.2686939]
[1752169663292,0.05039308,113600.0,113590.0,2.2686939]
[1752169664284,0.22635298,113600.0,113590.0,2.2686939]
[1752169664487,0.25905298,113600.0,113590.0,2.2686939]
[1752169664697,0.08309308,113600.0,113590.0,2.28001112]
[1752169664995,0.02168308,113600.0,113590.0,2.28001112]
[1752169665392,0.02168308,113600.0,113590.0,2.28101112]
[1752169665697,0.22630697,113600.0,113590.0,2.28101112]
[1752169666102,0.05034707,113600.0,113590.0,2.28101112]
[1752169666399,0.03075,113600.0,113590.0,2.28101112]
[1752169668285,0.2067099,113600.0,113590.0,2.28101112]
[1752169668489,0.2067099,113600.0,113590.0,1.92021112]
[1752169668691,0.03075,113600.0,113590.0,1.92021112]
[1752169668890,0.03075,113600.0,113590.0,2.28101112]
[1752169671497,0.2067099,113600.0,113590.0,2.28101112]
[1752169671801,0.03075,113600.0,113590.0,2.28101112]
[1752169672001,0.06375,113600.0,113590.0,2.28101112]
[1752169673202,0.2397099,113600.0,113590.0,2.28101112]
[1752169673606,0.2713099,113600.0,113590.0,2.28101112]
[1752169673796,0.30934955,113600.0,113590.0,0.9852139]
[1752169673997,0.67014955,113600.0,113590.0,0.8093754]
[1752169674206,0.67106955,113600.0,113590.0,0.8093754]
[1752169674504,0.67106955,113600.0,113590.0,0.003]
[1752169674696,1.08293805,113600.0,113590.0,0.003]
[1752169674901,0.67106955,113600.0,113590.0,1.2358539]
[1752169675095,0.67106955,113600.0,113590.0,1.2213239]
[1752169675292,0.67106955,113600.0,113590.0,0.8094554]
[1752169675706,0.31026955,113600.0,113590.0,0.8096154]
[1752169675900,0.31026955,113600.0,113590.0,1.2360139]
[1752169676500,0.31026955,113600.0,113590.0,1.2359739]
[1752169676902,0.13430965,113600.0,113590.0,1.08769852]
[1752169677097,0.30934955,113600.0,113590.0,1.44849852]
[1752169678503,0.29075955,113600.0,113590.0,1.44849852]
[1752169678705,0.29075955,113600.0,113590.0,1.51069852]
[1752169679205,0.30934955,113600.0,113590.0,1.08761852]
[1752169679405,0.30934955,113600.0,113590.0,1.44841852]
[1752169681119,0.30934955,113600.0,113590.0,1.07308852]
[1752169681507,0.30934955,113600.0,113590.0,1.08761852]
[1752169685298,0.35683828,113600.0,113590.0,1.08761852]
[1752169685610,0.35683828,113600.0,113590.0,0.8240254]
[1752169685812,0.35771828,113600.0,113590.0,1.08761852]
[1752169686706,0.35771828,113600.0,113590.0,1.08673852]
[1752169688907,0.71851828,113600.0,113590.0,1.08673852]
[1752169689115,0.31022955,113600.0,113590.0,1.08633852]
[1752169692608,0.35771828,113600.0,113590.0,1.08633852]
[1752169693306,0.93462267,113600.0,113590.0,0.003]
[1752169693505,0.71851828,113600.0,113590.0,0.1789753]
[1752169693705,0.35771828,113600.0,113590.0,1.05256842]
[1752169693906,0.31022955,113600.0,113590.0,1.05256842]
[1752169694910,0.31022955,113600.0,113590.0,0.8083053]
[1752169695108,0.31022955,113600.0,113590.0,0.46189842]
[1752169695309,0.31022955,113600.0,113590.0,1.07189842]
[1752169695614,0.31022955,113600.0,113590.0,0.46189842]
[1752169695816,0.31022955,113600.0,113590.0,1.07189842]
[1752169696213,0.31022955,113600.0,113590.0,0.8083053]
[1752169696414,0.35771828,113600.0,113590.0,1.07189842]
[1752169696916,0.71851828,113600.0,113590.0,1.07189842]
[1752169699411,0.93462267,113600.0,113590.0,0.003]
[1752169699715,0.9821114,113600.0,113590.0,0.003]
[1752169699904,0.9821114,113600.0,113590.0,0.1789764]
[1752169700110,0.9821114,113600.0,113590.0,0.003]
[1752169700616,0.71851828,113600.0,113590.0,0.003]
[1752169701018,0.71951828,113600.0,113590.0,0.1779763]
[1752169701210,0.71951828,113600.0,113590.0,0.02133]
[1752169701411,0.71951828,113600.0,113590.0,0.002]
[1752169701613,0.2240663,113590.0,113580.0,1.11289872]
[1752169701806,0.30651595,113590.0,113580.0,1.11289872]
[1752169702009,0.30651595,113590.0,113580.0,1.12676872]
[1752169702212,0.30739596,113590.0,113580.0,1.12676872]
[1752169702411,0.35488469,113590.0,113580.0,1.12676872]
[1752169703317,0.30839596,113590.0,113580.0,1.12676872]
[1752169704908,0.02132966,113590.0,113580.0,1.75116184]
[1752169705109,0.02044965,113590.0,113580.0,1.81626184]
[1752169706114,0.19742685,113590.0,113580.0,2.42922184]
[1752169706315,0.24551685,113590.0,113580.0,1.77192872]
[1752169706520,0.30931685,113590.0,113580.0,1.77692872]
[1752169706819,0.67011685,113590.0,113580.0,1.24729]
[1752169707015,0.67011685,113590.0,113580.0,0.2033226]
[1752169707016,0.57290997,113590.0,113580.0,0.2033226]
[1752169707213,0.93458997,113590.0,113580.0,0.02733]
[1752169707418,0.93458997,113590.0,113580.0,0.63729]
[1752169707923,0.67099685,113590.0,113580.0,0.63729]
[1752169708520,0.71848558,113590.0,113580.0,0.63729]
[1752169709013,0.67099685,113590.0,113580.0,0.63729]
[1752169709325,0.67099685,113590.0,113580.0,0.8132826]
[1752169710226,0.67099685,113590.0,113580.0,0.63729]
[1752169710620,0.67099685,113590.0,113580.0,0.63733]
[1752169711128,0.67099685,113590.0,113580.0,0.8133226]
[1752169711729,0.67099685,113590.0,113580.0,0.63733]
[1752169712119,0.67099685,113590.0,113580.0,0.008]
[1752169712318,0.67099685,113590.0,113580.0,0.618]
[1752169712520,0.67103685,113590.0,113580.0,0.618]
[1752169713126,0.67103685,113590.0,113580.0,0.008]
[1752169713625,0.94385692,113590.0,113580.0,0.008]
[1752169713838,0.2240981,113570.0,113560.0,0.8053136]
[1752169714021,0.60434775,113570.0,113560.0,0.9053136]
[1752169714223,0.66914775,113570.0,113560.0,0.11933]
[1752169714417,0.67006775,113570.0,113560.0,0.72929]
[1752169714624,0.93366087,113570.0,113560.0,0.1]
[1752169714824,0.93466087,113570.0,113560.0,0.105]
[1752169715122,0.9831496,113570.0,113560.0,0.113]
[1752169715323,0.93566087,113570.0,113560.0,0.113]
[1752169715523,0.93466087,113570.0,113560.0,0.105]
[1752169715720,0.93566087,113570.0,113560.0,0.107]
[1752169716324,1.29646087,113570.0,113560.0,0.107]
[1752169716523,1.58929223,113570.0,113560.0,0.007]
[1752169717531,1.75958711,113570.0,113560.0,0.27059312]
[1752169717731,1.75958711,113570.0,113560.0,0.28850312]
[1752169718124,1.03729838,113570.0,113560.0,0.48148891]
[1752169718330,0.29395658,113570.0,113560.0,0.49437891]
[1752169718537,0.22601785,113570.0,113560.0,0.91557891]
[1752169719033,0.05000965,113570.0,113560.0,0.91557891]
[1752169719230,0.19745785,113570.0,113560.0,0.91557891]
[1752169719428,0.02144965,113570.0,113560.0,0.91557891]
[1752169719639,0.02144965,113570.0,113560.0,1.27917203]
[1752169719838,0.02144965,113570.0,113560.0,1.01557891]
[1752169720740,0.00848965,113570.0,113560.0,1.01557891]
[1752169720934,0.00848965,113570.0,113560.0,1.16391706]
[1752169721636,0.03699965,113570.0,113560.0,1.06391706]
[1752169722341,0.23175785,113570.0,113560.0,1.06391706]
[1752169724236,0.05574965,113570.0,113560.0,1.06391706]
[1752169724439,0.05574965,113570.0,113560.0,1.05102706]
[1752169727244,0.23175785,113570.0,113560.0,1.05102706]
[1752169727748,0.23175785,113570.0,113560.0,0.04187209]
[1752169727944,0.29715785,113570.0,113560.0,0.21789579]
[1752169728147,0.41742965,113570.0,113560.0,0.62982706]
[1752169728340,0.23263785,113570.0,113560.0,0.69132706]
[1752169728544,0.23175785,113570.0,113560.0,1.66212706]
[1752169729453,0.23175785,113570.0,113560.0,1.25019579]
[1752169729653,0.23175785,113570.0,113560.0,1.66212706]
[1752169729844,0.23175785,113570.0,113560.0,1.30132706]
[1752169730044,0.23175785,113570.0,113560.0,0.02491]
[1752169730045,0.59255785,113570.0,113560.0,0.02491]
[1752169730240,0.65543786,113570.0,113560.0,0.02491]
[1752169730444,0.65543786,113570.0,113560.0,0.2009336]
[1752169731552,0.65543786,113570.0,113560.0,0.02491]
[1752169732156,0.65543786,113570.0,113560.0,0.02499526]
[1752169733151,0.65543786,113570.0,113560.0,0.00708526]
[1752169733353,0.65543786,113570.0,113560.0,6e-08]
[1752169733655,1.06736913,113570.0,113560.0,6e-08]
[1752169735361,1.11485786,113570.0,113560.0,6e-08]
[1752169735861,1.06736913,113570.0,113560.0,6e-08]
[1752169737162,1.11478683,113570.0,113560.0,6e-08]
[1752169737356,1.06736913,113570.0,113560.0,6e-08]
[1752169738861,1.26547786,113570.0,113560.0,6e-08]
[1752169739066,1.3128926,113570.0,113560.0,6e-08]
[1752169739764,0.7028526,113570.0,113560.0,6e-08]
[1752169740066,1.3129326,113570.0,113560.0,0.58795493]
[1752169740265,0.7028526,113570.0,113560.0,0.60444472]
[1752169740461,0.65543786,113570.0,113560.0,0.60444472]
[1752169740965,0.59343786,113570.0,113560.0,0.60444472]
[1752169741266,0.59343786,113570.0,113560.0,0.66754472]
[1752169742358,0.23263786,113570.0,113560.0,0.66754472]
[1752169742565,0.23175785,113570.0,113560.0,0.66754472]
[1752169744469,0.23175785,113570.0,113560.0,0.25561345]
[1752169744662,0.23175785,113570.0,113560.0,0.66754472]
[1752169744863,0.23175785,113570.0,113560.0,0.51937609]
[1752169745471,0.23175785,113570.0,113560.0,1.12945609]
[1752169746070,0.23175785,113570.0,113560.0,0.86569345]
[1752169746260,0.23175785,113570.0,113560.0,1.12945609]
[1752169747571,0.23175795,113570.0,113560.0,1.49025609]
[1752169748465,0.05574965,113570.0,113560.0,1.49025609]
[1752169748861,0.23175795,113570.0,113560.0,1.49025609]
[1752169749061,0.23175795,113570.0,113560.0,1.78335609]
[1752169749062,0.03699965,113570.0,113560.0,1.78335609]
[1752169749263,0.00848965,113570.0,113560.0,1.78335609]
[1752169749465,5e-08,113570.0,113560.0,2.14711873]
[1752169749665,4e-05,113590.0,113580.0,0.1759928]
[1752169749858,4e-05,113590.0,113580.0,2.05182497]
[1752169750062,4e-05,113590.0,113580.0,2.11482497]
[1752169750464,0.1760173,113590.0,113580.0,1.50478497]
[1752169750656,0.02701,113590.0,113580.0,2.11482497]
[1752169750856,0.02701,113590.0,113580.0,1.3891747]
[1752169751058,0.2211473,113590.0,113580.0,1.6384147]
[1752169751264,0.2211473,113590.0,113580.0,1.2776147]
[1752169751673,0.2211473,113590.0,113580.0,1.28692733]
[1752169751972,0.2221473,113590.0,113580.0,1.28692733]
[1752169752665,0.2221473,113590.0,113580.0,0.67688733]
[1752169752872,0.2221473,113590.0,113580.0,1.28684733]
[1752169753169,0.2221473,113590.0,113580.0,0.67688733]
[1752169753365,0.2241473,113590.0,113580.0,0.81293232]
[1752169753565,0.2882473,113590.0,113580.0,0.81293232]
[1752169754671,0.2882473,113590.0,113580.0,1.22484733]
[1752169754874,0.2241473,113590.0,113580.0,1.28994733]
[1752169755869,0.2241473,113590.0,113580.0,0.67998733]
[1752169756178,0.2241473,113590.0,113580.0,1.28990733]
[1752169757073,0.2879473,113590.0,113580.0,0.19365969]
[1752169757269,0.2879473,113590.0,113580.0,0.80357969]
[1752169757573,0.2879473,113590.0,113580.0,0.01766689]
[1752169757769,0.6487473,113590.0,113580.0,0.01766689]
[1752169757965,1.06158231,113590.0,113580.0,0.001]
[1752169758768,1.10899705,113590.0,113580.0,0.001]
[1752169758968,0.2211383,113570.0,113560.0,0.24562051]
[1752169759160,0.2211383,113570.0,113560.0,0.90243365]
[1752169759363,0.6461383,113570.0,113560.0,0.90243365]
[1752169759566,0.6470183,113570.0,113560.0,0.29251365]
[1752169759771,0.6470183,113570.0,113560.0,0.90243365]
[1752169760675,0.2862183,113570.0,113560.0,0.90243365]
[1752169760876,0.6461383,113570.0,113560.0,0.90243365]
[1752169761174,0.2853383,113570.0,113560.0,0.90243365]
[1752169761780,0.6687196,113570.0,113560.0,0.90743365]
[1752169763174,0.3079196,113570.0,113560.0,0.90743365]
[1752169763381,0.3088396,113570.0,113560.0,0.90743365]
[1752169763768,0.3088396,113570.0,113560.0,1.31934866]
[1752169763971,0.3079196,113570.0,113560.0,1.31934866]
[1752169764271,0.6687196,113570.0,113560.0,1.14332486]
[1752169764461,0.6687196,113570.0,113560.0,0.53340486]
[1752169764663,0.6687196,113570.0,113560.0,0.12148985]
[1752169764865,0.66959961,113570.0,113560.0,0.10500006]
[1752169765073,1.08151462,113570.0,113560.0,0.10500006]
[1752169765472,1.08151462,113570.0,113560.0,0.00500006]
[1752169765673,1.08151462,113570.0,113540.0,0.01675754]
[1752169765674,0.1941992,113550.0,113540.0,0.01675754]
[1752169765878,0.2417505,113550.0,113540.0,0.90277224]
[1752169766070,0.3062505,113550.0,113540.0,0.90277224]
[1752169766266,0.6670505,113550.0,113540.0,0.11675754]
[1752169766470,0.6670505,113550.0,113540.0,0.72671754]
[1752169766684,0.6670505,113550.0,113540.0,0.90277224]
[1752169766978,0.3062505,113550.0,113540.0,0.8860147]
[1752169767578,0.3072505,113550.0,113540.0,0.8870147]
[1752169768079,0.6690505,113550.0,113540.0,0.71196]
[1752169768376,0.6690505,113550.0,113540.0,0.102]
[1752169768579,0.6690505,113550.0,113540.0,0.71212]
[1752169769877,1.09031039,113550.0,113540.0,0.102]
[1752169770581,0.67839538,113550.0,113540.0,0.102]
[1752169771380,0.72669012,113550.0,113540.0,0.102]
[1752169771582,0.72769012,113550.0,113540.0,0.101]
[1752169771883,0.72669012,113550.0,113540.0,0.1]
[1752169772082,0.73069012,113550.0,113540.0,0.101]
[1752169774181,0.68327538,113550.0,113540.0,0.101]
[1752169776083,0.6739305,113550.0,113540.0,0.2770548]
[1752169776383,0.6739305,113550.0,113540.0,0.68896981]
[1752169776579,0.2486305,113550.0,113540.0,1.90932981]
[1752169776779,0.0265813,113550.0,113540.0,2.088888]
[1752169776985,0.0265813,113550.0,113540.0,2.449688]
[1752169777779,0.0265813,113550.0,113540.0,2.349688]
[1752169778987,0.0265813,113550.0,113540.0,2.449688]
[1752169779388,0.006,113550.0,113540.0,2.449688]
[1752169779779,0.006,113550.0,113540.0,2.742788]
[1752169783380,0.02689,113570.0,113560.0,0.2200297]
[1752169783586,0.04772788,113570.0,113560.0,2.25691061]
[1752169783788,0.01995787,113570.0,113560.0,2.46491651]
[1752169784684,0.19696617,113570.0,113560.0,2.36591651]
[1752169784884,0.22385617,113570.0,113560.0,2.36591651]
[1752169785082,0.04784787,113570.0,113560.0,2.36591651]
[1752169785487,0.22385617,113570.0,113560.0,2.36591651]
[1752169786091,0.22485617,113570.0,113560.0,2.36791651]
[1752169786591,0.02195787,113570.0,113560.0,2.46791651]
[1752169788393,0.02195787,113570.0,113560.0,2.46991651]
[1752169788593,0.02195787,113570.0,113560.0,2.76301651]
[1752169788793,0.002,113570.0,113560.0,2.76301651]
[1752169794693,0.02689,113580.0,113570.0,0.1760083]
[1752169794891,0.04675529,113580.0,113570.0,1.30462331]
[1752169795692,0.01986529,113580.0,113570.0,1.40462331]
[1752169795891,0.002,113580.0,113570.0,1.40862331]
[1752169796198,0.2219428,113580.0,113570.0,1.31796928]
[1752169796398,0.27490356,113580.0,113570.0,1.31796928]
[1752169796592,0.09891076,113580.0,113570.0,1.41796928]
[1752169796799,0.06581076,113580.0,113570.0,1.41796928]
[1752169797094,0.04875076,113580.0,113570.0,1.00605427]
[1752169797293,0.04875076,113580.0,113570.0,1.41796928]
[1752169797798,0.22474356,113580.0,113570.0,1.31796928]
[1752169797999,0.22474356,113580.0,113570.0,1.41796928]
[1752169798296,0.24180356,113580.0,113570.0,1.31796928]
[1752169798799,0.06581076,113580.0,113570.0,1.31796928]
[1752169798995,0.24180356,113580.0,113570.0,2.11476928]
[1752169799188,0.30340356,113580.0,113570.0,2.47556928]
[1752169799393,0.30340356,113580.0,113570.0,2.47600928]
[1752169800100,0.30340356,113580.0,113570.0,2.06409427]
[1752169800297,0.30340356,113580.0,113570.0,2.47600928]
[1752169800498,0.30340356,113580.0,113570.0,2.18290928]
[1752169802806,0.30340356,113580.0,113570.0,2.03468196]
[1752169805998,0.12741076,113580.0,113570.0,2.29836965]
[1752169806202,0.04945474,113600.0,113590.0,0.1759765]
[1752169806394,0.11241474,113610.0,113600.0,0.218431]
[1752169806591,0.065,113610.0,113600.0,1.10660638]
[1752169806793,0.002,113610.0,113600.0,1.20660638]
[1752169806999,0.002,113610.0,113600.0,1.27210638]
[1752169808108,0.007,113610.0,113600.0,1.27710638]
[1752169808300,0.007,113610.0,113600.0,2.77710638]
[1752169808902,0.004,113610.0,113600.0,3.07803288]
[1752169810208,0.004,113610.0,113600.0,2.66638194]
[1752169810707,0.1799454,113610.0,113600.0,3.78606194]
[1752169810909,0.2846654,113610.0,113600.0,2.71282229]
[1752169811208,0.2846654,113610.0,113600.0,3.12447323]
[1752169811411,0.2846654,113610.0,113600.0,3.19506199]
[1752169811905,0.10872,113610.0,113600.0,1.69502199]
[1752169812113,0.2846654,113610.0,113600.0,1.69502199]
[1752169812416,0.2846654,113610.0,113600.0,3.19502199]
[1752169812622,0.06484,113610.0,113600.0,3.29502199]
[1752169812818,0.00404,113610.0,113600.0,3.70667293]
[1752169813024,0.00404,113610.0,113600.0,3.77077293]
[1752169813320,8e-05,113620.0,113610.0,0.33141387]
[1752169813515,0.3267585,113640.0,113630.0,0.2143445]
[1752169813716,0.3276385,113640.0,113630.0,1.84559544]
[1752169813916,0.3267585,113640.0,113630.0,1.44766448]
[1752169814118,0.3267585,113640.0,113630.0,1.85931542]
[1752169814913,0.3267585,113640.0,113630.0,1.83926542]
[1752169815113,0.3267585,113640.0,113630.0,1.25181998]
[1752169815320,0.6875585,113640.0,113630.0,1.2381]
[1752169815522,0.6884385,113640.0,113630.0,1.4140145]
[1752169815820,0.3276385,113640.0,113630.0,1.4140145]
[1752169816134,0.6885585,113640.0,113630.0,1.2381]
[1752169816314,0.6885585,113640.0,113630.0,1.22072]
[1752169816315,0.6894385,113640.0,113630.0,1.22072]
[1752169816519,0.6894385,113640.0,113630.0,1.3966345]
[1752169816719,0.6894385,113640.0,113630.0,1.22072]
[1752169818020,0.6894785,113640.0,113630.0,1.22072]
[1752169818220,0.70860398,113640.0,113630.0,1.22072]
[1752169819126,0.34780398,113640.0,113630.0,1.3966345]
[1752169819323,0.34692398,113640.0,113630.0,1.22072]
[1752169819824,0.70772398,113640.0,113630.0,1.22072]
[1752169820022,0.34780398,113640.0,113630.0,1.22072]
[1752169820622,0.34780398,113640.0,113630.0,1.3966345]
[1752169820819,0.70772398,113640.0,113630.0,1.41336359]
[1752169821012,0.34692398,113640.0,113630.0,1.41336359]
[1752169821226,0.70772398,113640.0,113630.0,1.41336359]
[1752169821426,0.70864398,113640.0,113630.0,1.82501453]
[1752169821626,0.70864398,113640.0,113630.0,1.84510453]
[1752169822121,0.30386448,113640.0,113630.0,2.20590453]
[1752169822325,0.71459542,113640.0,113630.0,0.001]
[1752169822622,0.1930454,113610.0,113600.0,0.03847]
[1752169822828,0.65060182,113610.0,113600.0,0.11838]
[1752169823018,1.04190182,113610.0,113600.0,0.11838]
[1752169823225,0.68110182,113610.0,113600.0,0.11838]
[1752169823421,1.04190182,113610.0,113600.0,0.1]
[1752169824424,1.04190182,113610.0,113600.0,0.102]
[1752169824830,0.63025088,113610.0,113600.0,0.2963409]
[1752169825030,0.26945088,113610.0,113600.0,0.2943409]
[1752169825326,0.63029088,113610.0,113600.0,0.3154309]
[1752169825720,0.66079088,113610.0,113600.0,0.3154309]
[1752169825923,0.66079088,113610.0,113600.0,0.3144309]
[1752169825924,0.29999088,113610.0,113600.0,0.3144309]
[1752169826123,0.30299088,113610.0,113600.0,0.3154309]
[1752169826727,0.30299088,113610.0,113600.0,1.08788184]
[1752169826927,0.30499088,113610.0,113600.0,1.08888184]
[1752169827326,0.35040562,113610.0,113600.0,1.08788184]
[1752169827528,0.30299088,113610.0,113600.0,0.6762309]
[1752169828231,0.35040562,113610.0,113600.0,0.6762309]
[1752169828530,0.04894548,113610.0,113600.0,1.11818184]
[1752169828827,0.02216548,113610.0,113600.0,1.25138184]
[1752169830728,0.02216548,113610.0,113600.0,1.15138184]
[1752169830930,0.02216548,113610.0,113600.0,1.25138184]
[1752169831130,0.00304,113610.0,113600.0,1.25138184]
[1752169831429,0.02221721,113610.0,113600.0,1.25138184]
[1752169831625,0.21526261,113610.0,113600.0,1.25138184]
[1752169831825,0.24204261,113610.0,113600.0,0.2953409]
[1752169832020,0.30374261,113610.0,113600.0,0.2953409]
[1752169832222,0.30466261,113610.0,113600.0,0.9081409]
[1752169832634,0.30466261,113610.0,113600.0,0.9282309]
[1752169833136,0.30466261,113610.0,113600.0,1.33988184]
[1752169833333,0.30374261,113610.0,113600.0,1.33988184]
[1752169833838,0.02221721,113610.0,113600.0,1.80068184]
[1752169834035,0.02221721,113610.0,113600.0,1.86438184]
[1752169834233,0.02221721,113610.0,113600.0,2.27603278]
[1752169834433,0.04388,113630.0,113620.0,0.2143999]
[1752169834630,0.2197945,113630.0,113620.0,1.23905084]
[1752169834835,0.2197945,113630.0,113620.0,1.30275084]
[1752169835335,0.2197945,113630.0,113620.0,1.66355084]
[1752169835726,0.2237945,113630.0,113620.0,1.66455084]
[1752169836440,0.2287945,113630.0,113620.0,1.66555084]
[1752169837034,0.2267945,113630.0,113620.0,1.66455084]
[1752169837235,0.2247945,113630.0,113620.0,1.66355084]
[1752169838135,0.2247945,113630.0,113620.0,0.37918]
[1752169838136,0.04888,113630.0,113620.0,0.37918]
[1752169838336,1.06054544,113630.0,113620.0,0.01838]
[1752169838638,0.1934209,113600.0,113590.0,0.01653]
[1752169838835,0.99155184,113600.0,113590.0,0.72985]
[1752169839035,1.05485184,113600.0,113590.0,0.72985]
[1752169839337,1.05485184,113600.0,113590.0,0.9058264]
[1752169839635,0.64408091,113600.0,113590.0,0.9058264]
[1752169839839,0.71558218,113600.0,113590.0,0.9088264]
[1752169840236,0.71558218,113600.0,113590.0,0.9058264]
[1752169840544,0.71558218,113600.0,113590.0,0.9088264]
[1752169840948,0.35478218,113600.0,113590.0,0.9088264]
[1752169841244,0.71558218,113600.0,113590.0,0.9068264]
[1752169841439,0.71558218,113600.0,113590.0,0.9078264]
[1752169841642,0.35478218,113600.0,113590.0,0.9078264]
[1752169841946,0.35478218,113600.0,113590.0,1.31947734]
[1752169842141,0.35478218,113600.0,113590.0,1.33897734]
[1752169843047,0.35478218,113600.0,113590.0,1.31947734]
[1752169843546,0.35478218,113600.0,113590.0,0.9078264]
[1752169844047,0.71558218,113600.0,113590.0,0.9078264]
[1752169844347,0.35478218,113600.0,113590.0,0.9078264]
[1752169844746,0.35478218,113600.0,113590.0,1.33897734]
[1752169845246,0.34808218,113600.0,113590.0,1.33897734]
[1752169845547,0.34808218,113600.0,113590.0,0.9273264]
[1752169845748,0.34808218,113600.0,113590.0,1.33897734]
[1752169846244,0.34808218,113600.0,113590.0,1.69977734]
[1752169846448,0.36651648,113600.0,113590.0,1.76527734]
[1752169848950,0.36651648,113600.0,113590.0,1.40447734]
[1752169849451,0.36655648,113600.0,113590.0,1.37127734]
[1752169849647,0.36747648,113600.0,113590.0,1.37127734]
[1752169850656,0.36747648,113600.0,113590.0,1.73207734]
[1752169850845,0.33425648,113600.0,113590.0,1.73207734]
[1752169851045,0.33425648,113600.0,113590.0,1.76507734]
[1752169851352,0.33425648,113600.0,113590.0,1.76495734]
[1752169853253,0.33426862,113600.0,113590.0,1.76495734]
[1752169853453,0.30326862,113600.0,113590.0,1.76495734]
[1752169853754,0.30326862,113600.0,113590.0,1.3533064]
[1752169853954,0.30326862,113600.0,113590.0,1.76495734]
[1752169854251,0.23176735,113600.0,113590.0,1.76495734]
[1752169857959,0.01936645,113600.0,113590.0,1.76495734]
[1752169858257,0.4488092,113620.0,113610.0,0.1763555]
[1752169858258,0.3070899,113620.0,113610.0,0.1763555]
[1752169858450,0.30804991,113620.0,113610.0,1.20064644]
[1752169858853,0.37384991,113620.0,113610.0,1.56144644]
[1752169859156,0.42126465,113620.0,113610.0,1.56144644]
[1752169859348,0.42326465,113620.0,113610.0,1.56144644]
[1752169859547,0.42526465,113620.0,113610.0,1.56144644]
[1752169860450,0.37584991,113620.0,113610.0,1.56144644]
[1752169860655,0.3768899,113620.0,113610.0,1.56144644]
[1752169861857,0.11298,113620.0,113610.0,1.56144644]
[1752169862055,0.2056499,113620.0,113610.0,1.62474644]
[1752169862355,0.02972,113620.0,113610.0,1.62474644]
[1752169862554,0.02772,113620.0,113610.0,1.62474644]
[1752169862854,0.02572,113620.0,113610.0,1.62574644]
[1752169863245,0.20165,113620.0,113610.0,1.62574644]